bitfinex/quotes_ETHUSD_20250909
["timestamp","ask_amount","ask_price","bid_price","bid_amount"]
[1757447682253,27.48507703,4294.6,4294.5,0.002]
[1757447682665,26.65086381,4294.6,4294.5,0.002]
[1757447683349,27.48488337,4294.6,4294.5,0.002]
[1757447685411,26.65086381,4294.6,4294.5,0.002]
[1757447686800,26.19556381,4294.6,4294.5,0.002]
[1757447686958,27.59256381,4294.6,4294.5,0.002]
[1757447687165,26.19556381,4294.6,4294.5,0.002]
[1757447688598,26.82038332,4294.6,4294.5,0.002]
[1757447688977,26.19556381,4294.6,4294.5,0.002]
[1757447690200,26.8203305,4294.6,4294.5,0.002]
[1757447690368,26.19556381,4294.6,4294.5,0.002]
[1757447690904,26.8203195,4294.6,4294.5,0.002]
[1757447691108,13.9455856,4294.6,4294.5,1.2229]
[1757447691405,13.81201607,4294.6,4294.5,1.2229]
[1757447693641,19.40101607,4294.6,4294.5,1.2229]
[1757447696797,15.53901607,4294.6,4294.5,1.2229]
[1757447697002,19.40101607,4294.6,4294.5,1.2229]
[1757447700246,9.451,4294.6,4294.5,1.2229]
[1757447700481,5.589,4294.6,4294.5,1.2229]
[1757447700632,5.589,4294.6,4294.5,1.34519]
[1757447700828,9.454,4294.6,4294.5,1.34519]
[1757447701072,9.454,4294.6,4294.5,1.2229]
[1757447704564,0.116,4294.8,4294.5,1.2229]
[1757447704769,1.788,4295.1,4295.0,2.3282887]
[1757447704934,5.655,4295.1,4295.0,3.7050887]
[1757447705541,5.655,4295.1,4295.0,1.3768]
[1757447705746,5.655,4295.1,4295.0,1.2608]
[1757447711394,5.656,4295.1,4295.0,1.2608]
[1757447712387,5.656,4295.1,4295.0,3.7267687]
[1757447712714,1.788,4295.1,4295.0,3.8427687]
[1757447712860,5.656,4295.1,4295.0,6.8427687]
[1757447716391,3.868,4295.1,4295.0,6.8427687]
[1757447717165,0.001,4295.3,4295.2,2.32818029]
[1757447717363,0.001,4295.3,4295.2,6.12018029]
[1757447717560,0.001,4295.3,4295.2,7.38098029]
[1757447717980,0.001,4295.3,4295.2,11.24998029]
[1757447719408,0.001,4295.3,4295.2,10.45798029]
[1757447719722,0.001,4295.7,4295.6,6.11996349]
[1757447719870,0.001,4295.7,4295.6,9.98896349]
[1757447720215,0.001,4295.7,4295.6,11.36576349]
[1757447722116,0.001,4295.7,4295.6,11.45890231]
[1757447722915,0.001,4295.7,4295.6,10.66690231]
[1757447723082,0.001,4295.7,4295.6,12.75839616]
[1757447726014,0.001,4295.7,4295.6,12.87600346]
[1757447726320,0.001,4295.7,4295.6,12.75839616]
[1757447745451,0.001,4296.3,4295.7,6.1199093]
[1757447745745,0.4429,4297.7,4296.8,6.11931334]
[1757447745948,0.4429,4297.7,4296.8,9.98431334]
[1757447746110,0.4429,4297.7,4296.8,6.86181334]
[1757447746310,0.4429,4297.5,4296.8,7.89492983]
[1757447746529,0.4429,4297.5,4296.8,11.76192983]
[1757447746729,0.4429,4297.5,4296.8,11.33192983]
[1757447746946,0.4429,4297.3,4296.8,11.01942983]
[1757447747557,0.001,4297.0,4296.8,11.01942983]
[1757447750675,0.001,4297.0,4296.8,11.33192983]
[1757447751482,0.001,4297.0,4296.8,11.01942983]
[1757447752076,0.001,4297.0,4296.8,11.33192983]
[1757447752976,0.333,4296.9,4296.8,11.01742983]
[1757447753148,0.041,4296.9,4296.8,11.01742983]
[1757447754743,0.041,4296.9,4296.8,11.32992983]
[1757447757783,0.041,4296.9,4296.8,10.53792983]
[1757447759260,0.041,4296.9,4296.8,11.42512983]
[1757447760490,0.041,4296.9,4296.8,10.22542983]
[1757447761288,0.041,4296.9,4296.8,10.22442983]
[1757447761786,0.3505,4296.9,4296.8,10.22442983]
[1757447762564,1.2531,4296.9,4296.8,5.44331334]
[1757447763503,1.2531,4296.9,4296.8,0.116]
[1757447764580,1.2531,4296.9,4296.8,2.44331334]
[1757447765302,1.2531,4296.9,4296.8,0.116]
[1757447767100,5.1191,4296.9,4296.8,0.116]
[1757447769499,5.1181,4296.9,4296.8,0.116]
[1757447773792,5.63001,4296.9,4296.2,0.002]
[1757447774101,2.32748902,4296.5,4296.2,0.002]
[1757447774290,3.87,4296.4,4296.2,0.002]
[1757447774487,0.3095,4296.3,4296.2,0.002]
[1757447774687,0.7714,4296.3,4296.2,0.002]
[1757447774914,1.2121,4296.3,4296.2,0.002]
[1757447777512,1.95305898,4296.3,4296.2,0.002]
[1757447777833,4.28064318,4296.3,4296.2,0.002]
[1757447786250,15.19264318,4296.3,4296.2,0.002]
[1757447786576,15.90925929,4296.3,4296.2,0.002]
[1757447787129,16.00244844,4296.3,4296.2,0.002]
[1757447787378,16.62690113,4296.3,4296.2,0.002]
[1757447788165,16.00244844,4296.3,4296.2,0.002]
[1757447788347,16.62681071,4296.3,4296.2,0.002]
[1757447789143,16.00244844,4296.3,4296.2,0.002]
[1757447789347,16.62678463,4296.3,4296.2,0.002]
[1757447791253,16.00244844,4296.3,4296.2,0.002]
[1757447792556,18.45144844,4296.3,4296.2,0.002]
[1757447794432,22.32444844,4296.3,4296.2,0.002]
[1757447796336,23.158468,4296.3,4296.2,0.002]
[1757447796953,24.555468,4296.3,4296.2,0.002]
[1757447799287,23.72144844,4296.3,4296.2,0.002]
[1757447800575,23.7215377,4296.3,4296.2,0.002]
[1757447802364,24.97397016,4296.3,4296.2,0.002]
[1757447803090,24.97455507,4296.3,4296.2,0.002]
[1757447803284,23.26022261,4296.3,4296.2,0.002]
[1757447804284,22.81752261,4296.3,4296.2,0.002]
[1757447804857,23.27722261,4296.3,4296.2,0.002]
[1757447805587,22.81752261,4296.3,4296.2,0.002]
[1757447806589,22.81652261,4296.3,4296.2,0.002]
[1757447808270,3.11980092,4295.9,4295.8,0.9624]
[1757447808493,20.45984442,4295.9,4295.8,0.9624]
[1757447808793,20.45984442,4295.9,4295.8,0.8191]
[1757447809675,16.58984442,4295.9,4295.8,0.8191]
[1757447809898,20.45884442,4295.9,4295.8,0.8191]
[1757447810071,20.45884442,4295.9,4295.8,0.341]
[1757447810472,19.66684442,4295.9,4295.8,0.341]
[1757447811707,20.45884442,4295.9,4295.8,0.341]
[1757447812488,20.45884442,4295.9,4295.8,0.027]
[1757447812808,26.04684442,4295.9,4295.8,0.027]
[1757447813378,27.2999912,4295.9,4295.8,0.027]
[1757447814098,26.04684442,4295.9,4295.8,0.027]
[1757447814286,27.2999912,4295.9,4295.8,0.027]
[1757447814489,27.30096778,4295.9,4295.8,0.027]
[1757447815287,26.047821,4295.9,4295.8,0.027]
[1757447816209,27.3043464,4295.9,4295.8,0.027]
[1757447816405,26.047821,4295.9,4295.8,0.027]
[1757447819217,27.30510319,4295.9,4295.8,0.027]
[1757447822734,27.3077048,4295.9,4295.8,0.027]
[1757447824209,21.41066939,4295.9,4295.8,1.2808]
[1757447824502,22.24879155,4295.9,4295.8,1.2808]
[1757447824937,21.41066939,4295.9,4295.8,1.2808]
[1757447825644,17.54466939,4295.9,4295.8,1.2808]
[1757447825809,21.41166939,4295.9,4295.8,1.2808]
[1757447828813,18.1727008,4295.9,4295.8,1.2808]
[1757447829004,22.0387008,4295.9,4295.8,1.2808]
[1757447829205,18.1727008,4295.9,4295.8,1.2808]
[1757447829441,22.0387008,4295.9,4295.8,1.2808]
[1757447829847,15.84489988,4295.9,4295.8,1.2808]
[1757447830009,21.19271478,4295.9,4295.8,1.2808]
[1757447830212,18.98091386,4295.9,4295.8,1.2808]
[1757447831725,21.30871478,4295.9,4295.8,1.2808]
[1757447831925,14.18871478,4295.9,4295.8,1.2808]
[1757447833261,13.68580092,4295.9,4295.8,1.2808]
[1757447835585,11.358,4295.9,4295.8,1.2808]
[1757447835941,11.358,4295.9,4295.8,3.73693511]
[1757447835942,1.904,4295.9,4295.8,3.73693511]
[1757447836142,5.654,4295.9,4295.8,1.40908]
[1757447844844,1.788,4295.9,4295.8,1.40908]
[1757447845183,5.652,4295.9,4295.8,1.40908]
[1757447846549,5.652,4295.9,4295.8,3.73693511]
[1757447847136,5.652,4295.9,4295.8,3.95392099]
[1757447848195,5.652,4295.9,4295.8,3.73693511]
[1757447848423,5.652,4295.9,4295.8,3.95392331]
[1757447850899,1.788,4295.9,4295.8,3.97720186]
[1757447851100,3.866,4296.1,4295.9,3.0]
[1757447851426,3.866,4296.1,4296.0,7.49645513]
[1757447851987,3.866,4296.1,4296.0,7.49635255]
[1757447860045,0.001,4296.2,4296.1,2.32769255]
[1757447860199,0.001,4296.2,4296.1,7.5014876]
[1757447860394,0.001,4296.2,4296.1,7.88271068]
[1757447874357,0.001,4296.2,4296.1,7.66582506]
[1757447874562,0.001,4296.2,4296.1,7.88268404]
[1757447874862,0.001,4296.2,4296.1,8.58117797]
[1757447875763,0.001,4296.2,4296.1,8.11067797]
[1757447876315,0.001,4296.2,4296.1,7.41218404]
[1757447876468,0.001,4296.2,4296.1,7.88268404]
[1757447877743,0.001,4296.2,4296.1,7.88468404]
[1757447879128,0.001,4296.2,4296.1,8.58315846]
[1757447880650,0.001,4296.2,4296.1,7.37055846]
[1757447881203,0.001,4296.2,4296.1,7.65905846]
[1757447881418,0.001,4296.2,4296.1,8.11265846]
[1757447881803,0.001,4296.2,4296.1,7.89579948]
[1757447882726,0.001,4296.2,4296.1,8.36899948]
[1757447884835,0.001,4296.2,4296.1,7.89579948]
[1757447885072,0.001,4296.2,4296.1,8.36899948]
[1757447889778,0.001,4296.2,4296.1,8.11319384]
[1757447889952,0.001,4296.2,4296.1,8.58639384]
[1757447890675,0.001,4296.2,4296.1,9.37839384]
[1757447898897,0.0369543,4296.9,4296.8,2.32731334]
[1757447899215,0.0369543,4296.9,4296.8,2.5447077]
[1757447899387,0.8219543,4296.9,4296.8,6.71812064]
[1757447901895,0.8219543,4296.9,4296.8,6.50072628]
[1757447902834,0.3477543,4296.9,4296.8,6.50072628]
[1757447906598,0.8219543,4296.9,4296.8,6.50072628]
[1757447908938,0.3477543,4296.9,4296.8,6.61672628]
[1757447909817,0.3477543,4296.9,4296.8,6.83405099]
[1757447911348,0.8219543,4296.9,4296.8,6.83405099]
[1757447911549,0.3477543,4296.9,4296.8,6.83405099]
[1757447912524,0.7762543,4296.9,4296.8,6.83405099]
[1757447912725,1.2336543,4296.9,4296.8,5.66063805]
[1757447912936,1.2336543,4296.9,4296.8,5.44331334]
[1757447913857,1.2336543,4296.9,4296.8,5.66066424]
[1757447915053,0.7762543,4296.9,4296.8,5.66066424]
[1757447915936,0.7762543,4296.9,4296.8,5.44331334]
[1757447920259,0.3477543,4296.9,4296.8,5.44331334]
[1757447920425,0.0369543,4296.9,4296.8,5.74051334]
[1757447920629,0.0369543,4296.9,4296.8,7.45120684]
[1757447923055,0.0369543,4296.9,4296.8,7.01880684]
[1757447926381,0.0369543,4296.9,4296.8,7.45120684]
[1757447929350,0.0369543,4296.9,4296.8,7.45320684]
[1757447931577,0.0369543,4296.9,4296.8,7.02080684]
[1757447931804,0.3451543,4296.9,4296.8,5.44531334]
[1757447934799,0.3451543,4296.9,4296.8,2.44531334]
[1757447935212,0.0369543,4296.9,4296.8,2.44531334]
[1757447935757,0.3451543,4296.9,4296.8,2.44531334]
[1757447938090,0.7736543,4296.9,4296.8,2.44531334]
[1757447938467,0.3451543,4296.9,4296.8,2.44531334]
[1757447938795,0.7736543,4296.9,4296.8,2.44531334]
[1757447939478,0.3451543,4296.9,4296.8,2.44531334]
[1757447942825,0.8112543,4296.9,4296.8,2.44531334]
[1757447943875,0.3451543,4296.9,4296.8,2.44531334]
[1757447944177,0.0369543,4296.9,4296.8,2.44531334]
[1757447944498,0.0369543,4296.9,4296.8,3.67191334]
[1757447945077,0.0369543,4296.9,4296.8,4.60636227]
[1757447945684,0.0369543,4296.9,4296.8,4.6296354]
[1757447946179,0.0369543,4296.9,4296.8,8.46736227]
[1757447947304,4.6724543,4296.9,4296.8,0.002]
[1757447947506,5.1343543,4296.9,4296.8,0.002]
[1757447948273,7.46161348,4296.9,4296.8,0.002]
[1757447950475,8.8091059,4296.9,4296.8,0.002]
[1757447950672,6.889189,4296.9,4296.8,0.002]
[1757447950872,9.40469658,4296.9,4296.8,0.002]
[1757447951075,9.90686046,4296.9,4296.8,0.002]
[1757447951878,10.12437647,4296.9,4296.8,0.002]
[1757447952109,9.90686046,4296.9,4296.8,0.002]
[1757447955480,6.04386046,4296.9,4296.8,0.002]
[1757447955685,9.40469658,4296.9,4296.8,0.002]
[1757447955884,9.90686046,4296.9,4296.8,0.002]
[1757447959493,17.02686046,4296.9,4296.8,0.002]
[1757447960282,20.81886046,4296.9,4296.8,0.002]
[1757447964681,21.03580255,4296.9,4296.8,0.002]
[1757447964924,17.17280255,4296.9,4296.8,0.002]
[1757447965221,21.03780255,4296.9,4296.8,0.002]
[1757447966289,21.66548297,4296.9,4296.8,0.002]
[1757447967437,20.81986046,4296.9,4296.8,0.002]
[1757447967640,21.03680685,4296.9,4296.8,0.002]
[1757447968145,21.66168262,4296.9,4296.8,0.002]
[1757447969730,20.73468262,4296.9,4296.8,0.002]
[1757447970042,20.73468262,4296.9,4296.8,0.3177]
[1757447970043,26.13497521,4296.9,4296.8,0.3177]
[1757447970220,26.44337521,4296.9,4296.8,0.002]
[1757447970624,26.90947521,4296.9,4296.8,0.002]
[1757447971834,26.44337521,4296.9,4296.8,0.002]
[1757447972240,26.66046906,4296.9,4296.8,0.002]
[1757447972442,27.12256906,4296.9,4296.8,0.002]
[1757447973350,22.48606906,4296.9,4296.8,0.002]
[1757447973653,26.35406906,4296.9,4296.8,0.002]
[1757447974353,26.97894483,4296.9,4296.8,0.002]
[1757447974556,27.27774483,4296.9,4296.8,0.002]
[1757447975349,26.65286906,4296.9,4296.8,0.002]
[1757447976422,26.6533267,4296.9,4296.8,0.002]
[1757447976664,26.3545267,4296.9,4296.8,0.002]
[1757447977065,26.3545267,4296.9,4296.8,0.7991]
[1757447977269,27.19143393,4296.9,4296.8,1.2327]
[1757447977467,27.19143393,4296.9,4296.8,0.7991]
[1757447977964,12.98191918,4296.9,4296.8,0.7991]
[1757447978155,16.01201195,4296.9,4296.8,1.2327]
[1757447978733,16.01201195,4296.9,4296.8,0.7991]
[1757447979270,16.01201195,4296.9,4296.8,0.3108]
[1757447979828,16.01201195,4296.9,4296.8,1.2327]
[1757447981334,16.01201195,4296.9,4296.8,0.7991]
[1757447983291,16.01201195,4296.9,4296.8,1.2327]
[1757447984092,16.01201195,4296.9,4296.8,0.7991]
[1757447984607,16.01201195,4296.9,4296.8,1.2327]
[1757447986314,16.01201195,4296.9,4296.8,0.7991]
[1757447986606,16.01201195,4296.9,4296.8,0.002]
[1757447986607,16.31081195,4296.9,4296.8,0.002]
[1757447987109,17.14771918,4296.9,4296.8,0.002]
[1757447987614,16.84891918,4296.9,4296.8,0.002]
[1757447988305,16.01201195,4296.9,4296.8,0.3108]
[1757447988604,16.84891918,4296.9,4296.8,0.3108]
[1757447988823,16.84891918,4296.9,4296.8,0.002]
[1757447988960,17.14771918,4296.9,4296.8,0.002]
[1757447990957,17.14571918,4296.9,4296.8,0.002]
[1757447991391,18.02481195,4296.9,4296.8,0.002]
[1757447991593,17.56291195,4296.9,4296.8,0.002]
[1757447992396,21.02481195,4296.9,4296.8,0.002]
[1757447992561,21.02527382,4296.9,4296.8,0.002]
[1757447993867,9.66904477,4296.4,4296.3,0.002]
[1757447994183,18.07809589,4296.4,4296.3,0.002]
[1757447994389,18.37689589,4296.4,4296.3,0.002]
[1757447995390,10.73658114,4296.4,4296.3,1.2327]
[1757447995594,9.89935763,4296.4,4296.3,1.2327]
[1757447996322,9.89935763,4296.4,4296.3,0.3108]
[1757447996469,10.19815763,4296.4,4296.3,0.002]
[1757447997380,11.03516027,4296.4,4296.3,0.002]
[1757447997605,10.73636027,4296.4,4296.3,0.002]
[1757447998024,11.03516027,4296.4,4296.3,0.002]
[1757447998343,22.03415763,4296.4,4296.3,0.002]
[1757447998495,22.03615763,4296.4,4296.3,0.002]
[1757447998694,23.29164387,4296.4,4296.3,0.002]
[1757447998895,22.82974387,4296.4,4296.3,0.002]
[1757447999131,21.57425763,4296.4,4296.3,0.002]
[1757447999626,23.29118593,4296.4,4296.3,0.002]
[1757448000328,25.54290068,4296.4,4296.3,0.002]
[1757448000528,28.15387238,4296.4,4296.3,0.002]
[1757448001229,24.58667238,4296.4,4296.3,0.002]
[1757448001396,28.45267238,4296.4,4296.3,0.002]
[1757448001606,28.91477238,4296.4,4296.3,0.002]
[1757448002017,21.11115763,4296.4,4296.3,0.002]
[1757448002335,28.45367238,4296.4,4296.3,0.002]
[1757448002693,28.92077238,4296.4,4296.3,0.002]
[1757448003094,28.45367238,4296.4,4296.3,0.002]
[1757448003295,24.28787238,4296.4,4296.3,0.301]
[1757448003532,28.45677238,4296.4,4296.3,0.002]
[1757448003720,28.15587238,4296.4,4296.3,0.301]
[1757448003907,28.99211671,4296.4,4296.3,0.301]
[1757448004093,28.45677238,4296.4,4296.3,0.002]
[1757448004854,28.15787238,4296.4,4296.3,0.002]
[1757448004999,24.58877238,4296.4,4296.3,0.002]
[1757448005325,28.45877238,4296.4,4296.3,0.002]
[1757448005642,3.11963837,4296.2,4296.1,0.002]
[1757448005937,8.32793233,4296.2,4296.1,0.002]
[1757448006134,8.84684569,4296.2,4296.1,0.002]
[1757448007148,16.43394569,4296.2,4296.1,0.002]
[1757448007729,16.13726576,4296.2,4296.1,0.002]
[1757448008036,18.07834886,4296.2,4296.1,0.002]
[1757448008402,18.54544886,4296.2,4296.1,0.002]
[1757448008787,18.54510818,4296.2,4296.1,0.002]
[1757448009640,18.07800818,4296.2,4296.1,0.002]
[1757448009933,3.11974674,4296.0,4295.9,0.002]
[1757448010132,14.61091062,4296.0,4295.9,0.002]
[1757448010305,14.8285833,4296.0,4295.9,0.002]
[1757448010502,15.1294833,4296.0,4295.9,0.002]
[1757448010702,15.68977224,4296.0,4295.9,0.002]
[1757448011033,16.45385972,4296.0,4295.9,0.002]
[1757448011233,22.04085972,4296.0,4295.9,0.002]
[1757448012021,18.17185972,4296.0,4295.9,0.002]
[1757448012339,30.74010698,4296.0,4295.9,0.002]
[1757448012836,30.43920698,4296.0,4295.9,0.7882]
[1757448013004,30.43920698,4296.0,4295.9,1.2157]
[1757448013200,30.43920698,4296.0,4295.9,0.002]
[1757448013424,30.74010698,4296.0,4295.9,0.002]
[1757448013737,23.31920698,4296.0,4295.9,0.002]
[1757448013953,26.62010698,4296.0,4295.9,0.002]
[1757448014124,27.08720698,4296.0,4295.9,0.002]
[1757448016143,26.31920698,4296.0,4295.9,0.002]
[1757448016381,26.31920698,4296.0,4295.9,0.301]
[1757448016792,25.52720698,4296.0,4295.9,0.002]
[1757448017152,26.31920698,4296.0,4295.9,0.002]
[1757448017352,26.62010698,4296.0,4295.9,0.002]
[1757448018896,27.08720698,4296.0,4295.9,0.002]
[1757448019695,2.32785511,4295.8,4295.6,0.002]
[1757448019905,13.26731119,4295.7,4295.6,0.002]
[1757448020107,13.41682896,4295.7,4295.6,0.002]
[1757448023682,14.67185726,4295.7,4295.6,0.002]
[1757448023881,14.67185726,4295.7,4295.2,0.002]
[1757448023882,0.792,4295.3,4295.2,0.002]
[1757448024085,14.81948175,4295.1,4295.0,0.002]
[1757448024279,6.12034291,4294.9,4294.8,0.027]
[1757448024512,11.54447993,4294.9,4294.8,0.027]
[1757448025310,11.00907947,4294.9,4294.8,0.027]
[1757448025512,11.2731263,4294.9,4294.8,0.027]
[1757448025716,14.02775282,4294.6,4294.5,0.002]
[1757448025910,19.45173131,4294.6,4294.5,0.002]
[1757448026223,19.00970329,4294.6,4294.5,0.002]
[1757448027124,19.80170329,4294.6,4294.5,0.002]
[1757448027421,21.86834628,4294.6,4294.5,0.002]
[1757448029319,21.03289077,4294.6,4294.5,0.002]
[1757448029692,21.03289077,4294.6,4294.5,0.7882]
[1757448029693,16.86399077,4294.6,4294.5,0.7882]
[1757448029921,20.73199077,4294.6,4294.5,0.7882]
[1757448030627,16.86399077,4294.6,4294.5,0.7882]
[1757448030922,20.73199077,4294.6,4294.5,0.7882]
[1757448032493,20.73199077,4294.6,4294.5,1.2459]
[1757448033229,20.73199077,4294.6,4294.5,0.7882]
[1757448033603,20.73199077,4294.6,4294.5,0.301]
[1757448035938,20.73199077,4294.6,4294.5,0.7631]
[1757448040365,16.86399077,4294.6,4294.5,1.2208]
[1757448040662,20.73099077,4294.6,4294.5,1.2208]
[1757448041438,3.76749145,4294.6,4294.5,1.2208]
[1757448041643,6.78988335,4294.6,4294.5,1.2208]
[1757448042169,7.88178335,4294.6,4294.5,0.002]
[1757448042342,3.908,4294.5,4294.3,0.002]
[1757448042543,3.908,4294.5,4294.0,0.002]
[1757448042544,3.792,4294.3,4294.0,0.002]
[1757448042754,11.93602395,4294.1,4294.0,0.002]
[1757448043067,13.28170289,4294.1,4294.0,0.002]
[1757448043650,4.88235563,4294.1,4294.0,0.002]
[1757448043835,15.84951086,4294.1,4294.0,0.002]
[1757448044252,15.9416758,4294.1,4294.0,0.002]
[1757448046272,15.31543362,4294.1,4294.0,0.002]
[1757448047147,15.01553362,4294.1,4294.0,0.002]
[1757448047668,16.41253362,4294.1,4294.0,0.002]
[1757448047972,15.01553362,4294.1,4294.0,0.002]
[1757448048342,18.88353362,4294.1,4294.0,0.002]
[1757448048748,18.88353362,4294.1,4294.0,0.7559]
[1757448049066,26.00353362,4294.1,4294.0,0.7559]
[1757448049749,26.00353362,4294.1,4294.0,0.002]
[1757448050073,27.60428913,4294.1,4294.0,0.002]
[1757448050242,26.30343362,4294.1,4294.0,0.002]
[1757448050767,27.13888913,4294.1,4294.0,0.002]
[1757448051543,0.792,4293.9,4293.6,0.002]
[1757448051756,0.116,4293.8,4293.6,0.002]
[1757448051959,8.46085997,4293.7,4293.6,0.002]
[1757448052155,11.00722876,4293.7,4293.6,0.002]
[1757448052372,11.9428323,4293.7,4293.6,0.002]
[1757448053374,20.64207956,4293.7,4293.6,0.002]
[1757448054184,22.07394515,4293.7,4293.6,0.002]
[1757448054495,22.53934515,4293.7,4293.6,0.002]
[1757448054669,21.77504515,4293.7,4293.6,0.2938]
[1757448054878,21.77504515,4293.7,4293.6,1.2136]
[1757448055066,21.77504515,4293.7,4293.6,0.7559]
[1757448056050,21.77504515,4293.7,4293.6,0.2938]
[1757448056359,20.52031571,4293.7,4293.6,0.2938]
[1757448057382,20.52087412,4293.7,4293.6,0.7559]
[1757448057594,20.52087412,4293.7,4293.6,1.2136]
[1757448058471,20.52087412,4293.7,4293.6,0.7559]
[1757448059774,20.52087412,4293.7,4293.6,0.2938]
[1757448059994,16.65287412,4293.7,4293.6,0.2938]
[1757448060191,20.52087412,4293.7,4293.6,0.2938]
[1757448060497,20.52087412,4293.7,4293.6,0.002]
[1757448061904,20.82327412,4293.7,4293.6,0.002]
[1757448062102,21.29557412,4293.7,4293.6,0.002]
[1757448062683,20.82327412,4293.7,4293.6,0.002]
[1757448063494,20.82327412,4293.7,4293.1,0.002]
[1757448063495,0.792,4293.5,4293.1,0.002]
[1757448063709,6.12142765,4292.9,4292.8,1e-08]
[1757448063906,11.01172118,4292.9,4292.8,1e-08]
[1757448065177,10.50976121,4292.9,4292.8,1e-08]
[1757448065826,18.90660847,4292.9,4292.8,0.80310001]
[1757448066012,21.07976488,4292.9,4292.8,1.24350001]
[1757448066211,21.07976488,4292.9,4292.8,0.80310001]
[1757448066597,21.07976488,4292.9,4292.8,0.30750001]
[1757448066792,21.07976488,4292.9,4292.8,1e-08]
[1757448066793,21.38216488,4292.9,4292.8,1e-08]
[1757448067027,2.32980755,4292.2,4292.1,0.5356]
[1757448067186,23.06905481,4292.2,4292.1,0.5356]
[1757448067385,23.57061469,4292.2,4292.1,1.2835]
[1757448067620,23.78825403,4292.2,4292.1,1.2835]
[1757448068021,25.18525403,4292.2,4292.1,1.2835]
[1757448068228,23.57061469,4292.2,4292.1,1.2835]
[1757448070597,23.57061469,4292.2,4292.1,1.2855]
[1757448070797,14.07936743,4292.2,4292.1,1.2855]
[1757448073145,13.57780755,4292.2,4292.1,1.2855]
[1757448073333,14.0790393,4292.2,4292.1,1.2855]
[1757448074447,21.4365689,4292.2,4292.1,1.2855]
[1757448077448,17.5685689,4292.2,4292.1,1.2855]
[1757448077637,14.0780393,4292.2,4292.1,1.2855]
[1757448077825,13.57680755,4292.2,4292.1,1.2855]
[1757448078334,14.078199,4292.2,4292.1,1.2855]
[1757448080544,10.211199,4292.2,4292.1,1.2855]
[1757448081140,7.88139145,4292.2,4292.1,1.2855]
[1757448081346,11.248,4292.2,4292.1,1.2855]
[1757448081561,14.079199,4292.2,4292.1,1.2855]
[1757448083823,14.079199,4292.2,4292.1,0.3495]
[1757448084022,16.32703592,4292.2,4292.1,0.042]
[1757448084256,16.79933592,4292.2,4292.1,0.042]
[1757448085261,16.78893592,4292.2,4292.1,0.042]
[1757448085464,21.09716905,4292.2,4292.1,0.042]
[1757448085936,20.63526905,4292.2,4292.1,0.042]
[1757448086871,19.79933592,4292.2,4292.1,0.042]
[1757448087019,26.91933592,4292.2,4292.1,0.042]
[1757448088545,23.05133592,4292.2,4292.1,0.042]
[1757448088894,26.92433592,4292.2,4292.1,0.042]
[1757448089848,26.14863592,4292.2,4292.1,0.042]
[1757448091176,26.98538866,4292.2,4292.1,0.042]
[1757448093265,26.14863592,4292.2,4292.1,0.042]
[1757448093797,26.44493592,4292.2,4292.1,0.042]
[1757448098186,26.90763592,4292.2,4292.1,0.042]
[1757448098385,3.1219704,4291.9,4291.8,0.025]
[1757448098591,18.11693828,4291.9,4291.8,0.025]
[1757448098890,18.63107166,4291.9,4291.8,0.025]
[1757448099863,3.12229618,4291.3,4291.2,0.002]
[1757448100062,3.12229618,4291.3,4289.8,0.4528]
[1757448100063,3.792,4291.2,4289.8,0.4528]
[1757448100274,6.41881341,4290.9,4290.0,0.4278]
[1757448100587,10.97385421,4290.9,4290.0,0.4278]
[1757448100789,11.65445293,4290.9,4290.0,0.4278]
[1757448100983,19.01198253,4290.9,4290.0,0.4278]
[1757448101396,2.33089366,4290.2,4290.0,0.4278]
[1757448101553,15.35142326,4290.2,4290.0,0.4278]
[1757448101760,15.85281471,4290.2,4290.1,0.3521]
[1757448101966,16.07053438,4290.2,4290.1,0.7799]
[1757448102173,15.35142326,4290.2,4290.1,0.7799]
[1757448102354,15.85301428,4290.2,4290.1,0.7799]
[1757448102555,15.35142326,4290.2,4290.1,0.7799]
[1757448102892,15.35342326,4290.2,4290.1,0.7799]
[1757448103094,15.85501403,4290.2,4290.1,0.7799]
[1757448104094,11.97901403,4290.2,4290.1,0.7799]
[1757448104298,1.789,4290.2,4290.1,0.7799]
[1757448104466,0.4278,4291.0,4290.2,2.33085406]
[1757448104467,0.50101266,4291.0,4290.2,2.33085406]
[1757448104659,0.62698847,4291.3,4290.3,3.06971387]
[1757448104660,5.666,4290.9,4290.3,3.06971387]
[1757448104862,3.877,4290.8,4290.4,0.4278]
[1757448105071,1.789,4290.9,4290.4,0.4278]
[1757448105271,4.11951341,4290.9,4290.8,0.3121]
[1757448105599,7.99651341,4290.9,4290.8,0.7399]
[1757448105963,5.666,4290.9,4290.8,0.7399]
[1757448106261,7.99651341,4290.9,4290.8,0.7399]
[1757448107601,7.99651341,4290.9,4290.8,0.7419]
[1757448108100,5.666,4290.9,4290.8,0.7419]
[1757448108260,7.99651341,4290.9,4290.8,0.7419]
[1757448108461,7.99551341,4290.9,4290.8,0.7419]
[1757448109899,8.11151341,4290.9,4290.8,0.7419]
[1757448111098,5.781,4290.9,4290.8,0.7419]
[1757448111606,5.78,4290.9,4290.8,0.7419]
[1757448112391,1.905,4290.9,4290.8,0.7419]
[1757448112597,5.664,4290.9,4290.8,0.8579]
[1757448112902,5.664,4290.9,4290.8,3.50732987]
[1757448113207,1.789,4290.9,4290.8,6.18846772]
[1757448113364,0.025,4291.8,4291.7,2.33007898]
[1757448113562,3.903,4291.8,4291.7,2.81940281]
[1757448113796,3.903,4291.8,4291.7,3.65200203]
[1757448113988,3.903,4291.8,4291.7,7.35127094]
[1757448114364,0.025,4291.8,4291.7,7.35127094]
[1757448114559,3.904,4291.8,4291.7,7.35127094]